[Event "*** SCC Grand Prix: Titled Tuesday Blitz"]
[Site "Chess.com"]
[Date "2020.06.02"]
[Round "1"]
[White "damayito"]
[Black "ChelsieMonica"]
[Result "0-1"]
[WhiteElo "1655"]
[BlackElo "2459"]
[TimeControl "180+1"]
[EndTime "10:07:25 PDT"]
[Termination "ChelsieMonica won on time"]

1. e4 {[%clk 0:03:00.7]} 1... c6 {[%clk 0:02:55.7]} 2. d4 {[%clk 0:02:59.5]}
2... d5 {[%clk 0:02:55]} 3. e5 {[%clk 0:02:49.5]} 3... Bf5 {[%clk 0:02:54.5]} 4.
Bd3 {[%clk 0:02:38.6]} 4... Bxd3 {[%clk 0:02:49.4]} 5. Qxd3 {[%clk 0:02:35.8]}
5... e6 {[%clk 0:02:50.3]} 6. Nf3 {[%clk 0:02:33.9]} 6... Ne7 {[%clk 0:02:41.7]}
7. O-O {[%clk 0:02:33.2]} 7... Ng6 {[%clk 0:02:41]} 8. a4 {[%clk 0:02:13.7]}
8... Be7 {[%clk 0:02:39.5]} 9. Be3 {[%clk 0:02:07.5]} 9... O-O {[%clk
0:02:35.7]} 10. c3 {[%clk 0:02:04.9]} 10... Nd7 {[%clk 0:02:32.6]} 11. Nbd2
{[%clk 0:02:04.4]} 11... f5 {[%clk 0:02:27.9]} 12. Nb3 {[%clk 0:01:48.7]} 12...
Nb6 {[%clk 0:02:11.9]} 13. Rfb1 {[%clk 0:01:44.7]} 13... Nc4 {[%clk 0:02:04.3]}
14. Nc1 {[%clk 0:01:41.5]} 14... Qe8 {[%clk 0:01:28.5]} 15. b3 {[%clk
0:01:34.6]} 15... Nxe3 {[%clk 0:01:27.1]} 16. fxe3 {[%clk 0:01:32.6]} 16... Nh4
{[%clk 0:01:23.6]} 17. Nxh4 {[%clk 0:01:25.9]} 17... Bxh4 {[%clk 0:01:23.1]} 18.
Qe2 {[%clk 0:01:24.8]} 18... Bg5 {[%clk 0:01:20.8]} 19. Nd3 {[%clk 0:01:22.7]}
19... Be7 {[%clk 0:00:48.3]} 20. Nf4 {[%clk 0:01:18.3]} 20... Qd7 {[%clk
0:00:41.1]} 21. Rf1 {[%clk 0:01:10.2]} 21... Rf7 {[%clk 0:00:40.4]} 22. Rf3
{[%clk 0:01:07.7]} 22... Bg5 {[%clk 0:00:38.5]} 23. Raf1 {[%clk 0:01:00.5]}
23... Bh6 {[%clk 0:00:37.5]} 24. Rg3 {[%clk 0:00:56.9]} 24... Kh8 {[%clk
0:00:36.8]} 25. Qh5 {[%clk 0:00:20.9]} 25... b5 {[%clk 0:00:35.9]} 26. axb5
{[%clk 0:00:19.9]} 26... cxb5 {[%clk 0:00:35.8]} 27. Rh3 {[%clk 0:00:19.4]}
27... Rc8 {[%clk 0:00:34.6]} 28. Rff3 {[%clk 0:00:16.3]} 28... Rxc3 {[%clk
0:00:34.1]} 29. Rf1 {[%clk 0:00:16]} 29... b4 {[%clk 0:00:31.4]} 30. Qh4 {[%clk
0:00:15.2]} 30... Kg8 {[%clk 0:00:30.3]} 31. Qg3 {[%clk 0:00:15.3]} 31... Bxf4
{[%clk 0:00:24.6]} 32. Rxf4 {[%clk 0:00:13]} 32... g6 {[%clk 0:00:23.8]} 33. Rf2
{[%clk 0:00:10.7]} 33... Qc7 {[%clk 0:00:23.3]} 34. Rf1 {[%clk 0:00:07.6]} 34...
Rc1 {[%clk 0:00:23.4]} 35. Qf3 {[%clk 0:00:07.5]} 35... Rxf1+ {[%clk 0:00:23.3]}
36. Qxf1 {[%clk 0:00:07.6]} 36... Qc3 {[%clk 0:00:22.8]} 37. Qd1 {[%clk
0:00:05.8]} 37... Rc7 {[%clk 0:00:22.5]} 38. Rf3 {[%clk 0:00:05.7]} 38... Qc1
{[%clk 0:00:22.3]} 39. Rf1 {[%clk 0:00:02.7]} 39... Qxe3+ {[%clk 0:00:22.1]} 40.
Kh1 {[%clk 0:00:01.7]} 40... Qe4 {[%clk 0:00:22]} 41. h3 {[%clk 0:00:01.2]}
41... Rc2 {[%clk 0:00:21.2]} 0-1

[Event "*** SCC Grand Prix: Titled Tuesday Blitz"]
[Site "Chess.com"]
[Date "2020.06.02"]
[Round "1"]
[White "anastasiyakarlovych"]
[Black "r31415"]
[Result "1-0"]
[WhiteElo "1850"]
[BlackElo "2445"]
[TimeControl "180+1"]
[EndTime "10:07:26 PDT"]
[Termination "anastasiyakarlovych won by checkmate"]

1. e4 {[%clk 0:03:00.9]} 1... d6 {[%clk 0:02:58]} 2. d4 {[%clk 0:02:59.8]} 2...
Nf6 {[%clk 0:02:58]} 3. Nc3 {[%clk 0:02:59.3]} 3... g6 {[%clk 0:02:58]} 4. g3
{[%clk 0:02:58.2]} 4... Bg7 {[%clk 0:02:57.9]} 5. Bg2 {[%clk 0:02:58.3]} 5...
O-O {[%clk 0:02:58.1]} 6. Nge2 {[%clk 0:02:57.6]} 6... e5 {[%clk 0:02:58.4]} 7.
Be3 {[%clk 0:02:56.5]} 7... c6 {[%clk 0:02:57.5]} 8. h3 {[%clk 0:02:55.2]} 8...
Qc7 {[%clk 0:02:54.8]} 9. O-O {[%clk 0:02:53.5]} 9... Be6 {[%clk 0:02:54.3]} 10.
f4 {[%clk 0:02:42.7]} 10... Bc4 {[%clk 0:02:44.1]} 11. b3 {[%clk 0:02:30.7]}
11... Ba6 {[%clk 0:02:41.9]} 12. f5 {[%clk 0:02:18.6]} 12... b5 {[%clk
0:02:31.3]} 13. a3 {[%clk 0:02:09.1]} 13... Nbd7 {[%clk 0:02:06]} 14. g4 {[%clk
0:01:55.7]} 14... d5 {[%clk 0:01:37.8]} 15. g5 {[%clk 0:01:44.8]} 15... Nxe4
{[%clk 0:01:36.9]} 16. Nxe4 {[%clk 0:01:43.4]} 16... dxe4 {[%clk 0:01:36.6]} 17.
f6 {[%clk 0:01:43.1]} 17... Bh8 {[%clk 0:01:35.4]} 18. Bxe4 {[%clk 0:01:41.6]}
18... Rfe8 {[%clk 0:01:30]} 19. Bg2 {[%clk 0:01:25.7]} 19... Rad8 {[%clk
0:01:19.7]} 20. Qd2 {[%clk 0:00:55]} 20... c5 {[%clk 0:01:09.1]} 21. d5 {[%clk
0:00:53.2]} 21... Nb6 {[%clk 0:00:59.9]} 22. Rad1 {[%clk 0:00:36.3]} 22... e4
{[%clk 0:00:46.1]} 23. Nf4 {[%clk 0:00:29.7]} 23... Rd6 {[%clk 0:00:34.3]} 24.
Qc3 {[%clk 0:00:25]} 24... Rc8 {[%clk 0:00:17.7]} 25. Qe5 {[%clk 0:00:22]} 25...
Qd7 {[%clk 0:00:10]} 26. Rfe1 {[%clk 0:00:19.4]} 26... Re8 {[%clk 0:00:09.4]}
27. Qc3 {[%clk 0:00:17.5]} 27... Bb7 {[%clk 0:00:10.2]} 28. Bxc5 {[%clk
0:00:16.9]} 28... Rc8 {[%clk 0:00:09.1]} 29. Qb4 {[%clk 0:00:15.8]} 29... Nxd5
{[%clk 0:00:07.4]} 30. Nxd5 {[%clk 0:00:14.4]} 30... Rxd5 {[%clk 0:00:08.3]} 31.
Rxd5 {[%clk 0:00:11.6]} 31... Bxd5 {[%clk 0:00:09.2]} 32. Rd1 {[%clk 0:00:10.7]}
32... Qf5 {[%clk 0:00:06.3]} 33. Be7 {[%clk 0:00:08.1]} 33... Qxg5 {[%clk
0:00:05.1]} 34. Qd6 {[%clk 0:00:06]} 34... Bb7 {[%clk 0:00:01.8]} 35. Qd8+
{[%clk 0:00:05.6]} 35... Rxd8 {[%clk 0:00:01.2]} 36. Rxd8# {[%clk 0:00:06.1]}
1-0

[Event "*** SCC Grand Prix: Titled Tuesday Blitz"]
[Site "Chess.com"]
[Date "2020.06.02"]
[Round "1"]
[White "elegant285"]
[Black "CarlosAlbornoz"]
[Result "0-1"]
[WhiteElo "2369"]
[BlackElo "2724"]
[TimeControl "180+1"]
[EndTime "10:07:27 PDT"]
[Termination "CarlosAlbornoz won by resignation"]

1. d4 {[%clk 0:03:00.9]} 1... Nf6 {[%clk 0:02:59.9]} 2. c4 {[%clk 0:03:00.3]}
2... g6 {[%clk 0:03:00.1]} 3. Nc3 {[%clk 0:02:59.7]} 3... d6 {[%clk 0:03:00.2]}
4. e4 {[%clk 0:02:59.4]} 4... Bg7 {[%clk 0:03:00.3]} 5. Be2 {[%clk 0:02:59.3]}
5... O-O {[%clk 0:03:00.2]} 6. Bg5 {[%clk 0:02:58.5]} 6... h6 {[%clk 0:02:58.9]}
7. Be3 {[%clk 0:02:57.6]} 7... c5 {[%clk 0:02:58.7]} 8. d5 {[%clk 0:02:56.8]}
8... e6 {[%clk 0:02:58.8]} 9. Qd2 {[%clk 0:02:54.8]} 9... exd5 {[%clk
0:02:58.2]} 10. exd5 {[%clk 0:02:54.5]} 10... Kh7 {[%clk 0:02:57.2]} 11. h4
{[%clk 0:02:53.3]} 11... Re8 {[%clk 0:02:54.2]} 12. h5 {[%clk 0:02:49.7]} 12...
g5 {[%clk 0:02:54]} 13. Nf3 {[%clk 0:02:49.7]} 13... Ng4 {[%clk 0:02:51]} 14.
Nxg5+ {[%clk 0:02:43.6]} 14... hxg5 {[%clk 0:02:47.3]} 15. Bxg5 {[%clk
0:02:43.6]} 15... Bf6 {[%clk 0:02:39.3]} 16. Bxf6 {[%clk 0:02:40.1]} 16... Qxf6
{[%clk 0:02:38.6]} 17. O-O-O {[%clk 0:02:40.2]} 17... Qh6 {[%clk 0:02:23.8]} 18.
Bxg4 {[%clk 0:02:18.3]} 18... Bxg4 {[%clk 0:02:18.9]} 19. Rde1 {[%clk
0:02:12.7]} 19... Na6 {[%clk 0:02:07.5]} 20. f3 {[%clk 0:01:58.5]} 20... Bd7
{[%clk 0:01:39.2]} 21. Ne4 {[%clk 0:01:44.8]} 21... Nb4 {[%clk 0:01:24.1]} 22.
Ng5+ {[%clk 0:00:41]} 22... Kg8 {[%clk 0:01:18.9]} 23. g4 {[%clk 0:00:36.7]}
23... f6 {[%clk 0:01:08.2]} 24. Ne4 {[%clk 0:00:30.3]} 24... Nd3+ {[%clk
0:01:03.2]} 25. Kd1 {[%clk 0:00:29.3]} 25... Qxd2+ {[%clk 0:01:00.8]} 26. Kxd2
{[%clk 0:00:29.6]} 26... Nxe1 {[%clk 0:01:00.2]} 27. Nxf6+ {[%clk 0:00:29.5]}
27... Kf7 {[%clk 0:00:55.3]} 28. Nxe8 {[%clk 0:00:29]} 28... Nxf3+ {[%clk
0:00:54.1]} 29. Ke3 {[%clk 0:00:29.5]} 29... Rxe8+ {[%clk 0:00:42]} 30. Kxf3
{[%clk 0:00:29.6]} 30... Rg8 {[%clk 0:00:37.5]} 31. Rg1 {[%clk 0:00:28.3]} 31...
b5 {[%clk 0:00:31.6]} 32. b3 {[%clk 0:00:24.5]} 32... bxc4 {[%clk 0:00:31.1]}
33. bxc4 {[%clk 0:00:25.4]} 33... Kf6 {[%clk 0:00:28.8]} 34. Kf4 {[%clk
0:00:24.5]} 34... Rf8 {[%clk 0:00:28.4]} 35. g5+ {[%clk 0:00:22]} 35... Kg7+
{[%clk 0:00:28.3]} 36. Kg3 {[%clk 0:00:22]} 36... Rf5 {[%clk 0:00:27.6]} 37. Kh2
{[%clk 0:00:20.8]} 37... Rf4 {[%clk 0:00:23.7]} 38. Kg3 {[%clk 0:00:18.9]} 38...
Rg4+ {[%clk 0:00:21.6]} 39. Kf2 {[%clk 0:00:19.3]} 39... Rxg1 {[%clk 0:00:21.4]}
40. Kxg1 {[%clk 0:00:19.8]} 40... Bf5 {[%clk 0:00:21.8]} 41. Kf2 {[%clk
0:00:19.4]} 41... Bd3 {[%clk 0:00:22.1]} 0-1

[Event "*** SCC Grand Prix: Titled Tuesday Blitz"]
[Site "Chess.com"]
[Date "2020.06.02"]
[Round "1"]
[White "albano87"]
[Black "Shockerlover"]
[Result "1-0"]
[WhiteElo "2460"]
[BlackElo "1703"]
[TimeControl "180+1"]
[EndTime "10:07:27 PDT"]
[Termination "albano87 won on time"]

1. Nf3 {[%clk 0:03:00.2]} 1... Nf6 {[%clk 0:02:53.9]} 2. g3 {[%clk 0:02:59]}
2... g6 {[%clk 0:02:53.9]} 3. Bg2 {[%clk 0:02:58.5]} 3... Bg7 {[%clk 0:02:54.3]}
4. O-O {[%clk 0:02:59]} 4... O-O {[%clk 0:02:54.3]} 5. d4 {[%clk 0:02:59.6]}
5... d6 {[%clk 0:02:51.9]} 6. a4 {[%clk 0:02:58.7]} 6... c6 {[%clk 0:02:51.6]}
7. Re1 {[%clk 0:02:55.1]} 7... Nbd7 {[%clk 0:02:49.2]} 8. e4 {[%clk 0:02:54.3]}
8... e5 {[%clk 0:02:48.9]} 9. Nc3 {[%clk 0:02:52.8]} 9... exd4 {[%clk
0:02:48.2]} 10. Nxd4 {[%clk 0:02:52.4]} 10... a5 {[%clk 0:02:39.9]} 11. h3
{[%clk 0:02:49.5]} 11... Nc5 {[%clk 0:02:37.9]} 12. Be3 {[%clk 0:02:31.7]} 12...
Re8 {[%clk 0:02:33.1]} 13. f3 {[%clk 0:02:30.1]} 13... Nh5 {[%clk 0:02:12.2]}
14. g4 {[%clk 0:02:05.8]} 14... Ng3 {[%clk 0:01:53]} 15. Kh2 {[%clk 0:01:46.3]}
15... Qh4 {[%clk 0:01:46]} 16. Qd2 {[%clk 0:01:19.8]} 16... Be5 {[%clk
0:00:58.6]} 17. Kg1 {[%clk 0:00:35.9]} 17... Ngxe4 {[%clk 0:00:46.1]} 18. Nxe4
{[%clk 0:00:27.4]} 18... Nxe4 {[%clk 0:00:43.2]} 19. fxe4 {[%clk 0:00:27]} 19...
Qg3 {[%clk 0:00:39.5]} 20. Qf2 {[%clk 0:00:20.3]} 20... Qh2+ {[%clk 0:00:36.4]}
21. Kf1 {[%clk 0:00:20]} 21... Bg3 {[%clk 0:00:32.8]} 22. Qf3 {[%clk 0:00:15.1]}
22... Bxe1 {[%clk 0:00:30.9]} 23. Bf4 {[%clk 0:00:14.9]} 23... Bg3 {[%clk
0:00:07.2]} 24. Bxg3 {[%clk 0:00:15.1]} 24... Qxg2+ {[%clk 0:00:05.4]} 25. Kxg2
{[%clk 0:00:14.5]} 25... Be6 {[%clk 0:00:03.9]} 26. Nxe6 {[%clk 0:00:14.4]}
26... Rxe6 {[%clk 0:00:04.3]} 27. Rf1 {[%clk 0:00:15]} 27... f6 {[%clk
0:00:04.3]} 28. Bh4 {[%clk 0:00:14.9]} 28... Rae8 {[%clk 0:00:04.8]} 29. Bxf6
{[%clk 0:00:14.5]} 29... Rxe4 {[%clk 0:00:05.2]} 30. Bc3 {[%clk 0:00:14.4]}
30... Re2+ {[%clk 0:00:05.3]} 31. Rf2 {[%clk 0:00:14.3]} 31... Rxf2+ {[%clk
0:00:01.1]} 32. Qxf2 {[%clk 0:00:15.2]} 32... d5 {[%clk 0:00:02]} 33. Qf6 {[%clk
0:00:14.9]} 1-0

[Event "*** SCC Grand Prix: Titled Tuesday Blitz"]
[Site "Chess.com"]
[Date "2020.06.02"]
[Round "1"]
[White "kingofthenil"]
[Black "WiktoriaPOL"]
[Result "1-0"]
[WhiteElo "2474"]
[BlackElo "2007"]
[TimeControl "180+1"]
[EndTime "10:07:29 PDT"]
[Termination "kingofthenil won by resignation"]

1. e4 {[%clk 0:02:55.6]} 1... c5 {[%clk 0:02:56.4]} 2. d3 {[%clk 0:02:52.3]}
2... e6 {[%clk 0:02:53.3]} 3. g3 {[%clk 0:02:50.3]} 3... d5 {[%clk 0:02:49.6]}
4. Bg2 {[%clk 0:02:51.2]} 4... Nf6 {[%clk 0:02:34.3]} 5. Nc3 {[%clk 0:02:31]}
5... Nc6 {[%clk 0:02:30.1]} 6. exd5 {[%clk 0:02:18.4]} 6... exd5 {[%clk
0:02:27.3]} 7. Bg5 {[%clk 0:02:18.3]} 7... d4 {[%clk 0:01:58.6]} 8. Ne4 {[%clk
0:01:44.5]} 8... Be7 {[%clk 0:01:51.4]} 9. Bxf6 {[%clk 0:01:33.7]} 9... Bxf6
{[%clk 0:01:52.3]} 10. Ne2 {[%clk 0:01:32.5]} 10... Qa5+ {[%clk 0:01:48.7]} 11.
Nd2 {[%clk 0:01:15.6]} 11... O-O {[%clk 0:01:47]} 12. O-O {[%clk 0:01:16.5]}
12... Bg4 {[%clk 0:01:39.9]} 13. h3 {[%clk 0:01:06.5]} 13... Bh5 {[%clk
0:01:28.4]} 14. f4 {[%clk 0:00:40.5]} 14... Bxe2 {[%clk 0:01:10.8]} 15. Qxe2
{[%clk 0:00:41.4]} 15... Rfe8 {[%clk 0:01:11.3]} 16. Qd1 {[%clk 0:00:39.3]}
16... Qc7 {[%clk 0:00:38.7]} 17. Ne4 {[%clk 0:00:31]} 17... Be7 {[%clk
0:00:38.1]} 18. a4 {[%clk 0:00:30.1]} 18... f5 {[%clk 0:00:37]} 19. Nd2 {[%clk
0:00:29.9]} 19... Bf6 {[%clk 0:00:32.6]} 20. Nc4 {[%clk 0:00:30.8]} 20... Rad8
{[%clk 0:00:25.6]} 21. Kh2 {[%clk 0:00:24.3]} 21... Nb4 {[%clk 0:00:24.5]} 22.
Qd2 {[%clk 0:00:21.9]} 22... b6 {[%clk 0:00:21]} 23. Rae1 {[%clk 0:00:21.9]}
23... Qd7 {[%clk 0:00:15.8]} 24. b3 {[%clk 0:00:17.5]} 24... Nd5 {[%clk
0:00:14.6]} 25. Qf2 {[%clk 0:00:14.2]} 25... Ne3 {[%clk 0:00:11.4]} 26. Nxe3
{[%clk 0:00:11.6]} 26... dxe3 {[%clk 0:00:12.3]} 27. Rxe3 {[%clk 0:00:12.5]}
27... Bd4 {[%clk 0:00:11]} 28. Rxe8+ {[%clk 0:00:10.1]} 28... Rxe8 {[%clk
0:00:11.9]} 29. Qd2 {[%clk 0:00:09.9]} 29... Re3 {[%clk 0:00:05.6]} 30. Re1
{[%clk 0:00:09.1]} 30... Qe7 {[%clk 0:00:05.1]} 31. Rxe3 {[%clk 0:00:06.8]}
31... Bxe3 {[%clk 0:00:04.3]} 32. Qe2 {[%clk 0:00:06.9]} 32... h5 {[%clk
0:00:01.7]} 33. Qxh5 {[%clk 0:00:03.4]} 33... Kf8 {[%clk 0:00:01.4]} 34. Qh8+
{[%clk 0:00:02.3]} 34... Kf7 {[%clk 0:00:01.6]} 35. Bd5+ {[%clk 0:00:03.2]}
35... Kf6 {[%clk 0:00:02]} 36. Qh4+ {[%clk 0:00:02.8]} 36... Kg6 {[%clk
0:00:02.1]} 37. Qxe7 {[%clk 0:00:03.4]} 1-0

[Event "*** SCC Grand Prix: Titled Tuesday Blitz"]
[Site "Chess.com"]
[Date "2020.06.02"]
[Round "1"]
[White "Maksimus1998"]
[Black "VladimirBugayev"]
[Result "1-0"]
[WhiteElo "2522"]
[BlackElo "2154"]
[TimeControl "180+1"]
[EndTime "10:07:30 PDT"]
[Termination "Maksimus1998 won by checkmate"]

1. e4 {[%clk 0:02:59.6]} 1... c6 {[%clk 0:02:59.8]} 2. d4 {[%clk 0:02:58.3]}
2... d5 {[%clk 0:02:59.6]} 3. exd5 {[%clk 0:02:59.2]} 3... cxd5 {[%clk
0:02:59.7]} 4. Bd3 {[%clk 0:02:59.9]} 4... Nc6 {[%clk 0:02:59.2]} 5. c3 {[%clk
0:02:57.9]} 5... Qc7 {[%clk 0:02:59.3]} 6. Ne2 {[%clk 0:02:57.5]} 6... Bg4
{[%clk 0:02:56.6]} 7. O-O {[%clk 0:02:57.2]} 7... Nf6 {[%clk 0:02:55.6]} 8. Qe1
{[%clk 0:02:53.1]} 8... Bh5 {[%clk 0:02:52.1]} 9. Bf4 {[%clk 0:02:49.4]} 9...
Qd7 {[%clk 0:02:49.3]} 10. Ng3 {[%clk 0:02:48.2]} 10... Bg6 {[%clk 0:02:48.8]}
11. Qe2 {[%clk 0:02:41]} 11... e6 {[%clk 0:02:44.8]} 12. Nd2 {[%clk 0:02:40.1]}
12... Bxd3 {[%clk 0:02:38.9]} 13. Qxd3 {[%clk 0:02:39]} 13... Bd6 {[%clk
0:02:39.2]} 14. Bg5 {[%clk 0:02:36.5]} 14... Be7 {[%clk 0:02:30.2]} 15. Rae1
{[%clk 0:02:33.5]} 15... O-O {[%clk 0:02:29.9]} 16. Nf3 {[%clk 0:02:32.9]} 16...
h6 {[%clk 0:02:12.6]} 17. Bxf6 {[%clk 0:02:32.2]} 17... Bxf6 {[%clk 0:02:12]}
18. Nh5 {[%clk 0:02:32.8]} 18... Qd8 {[%clk 0:02:05.6]} 19. Ne5 {[%clk
0:02:24.6]} 19... Bxe5 {[%clk 0:01:54.5]} 20. dxe5 {[%clk 0:02:24.5]} 20... Qg5
{[%clk 0:01:54.1]} 21. Qh3 {[%clk 0:02:19.5]} 21... g6 {[%clk 0:01:23.9]} 22.
Nf6+ {[%clk 0:02:18.3]} 22... Kg7 {[%clk 0:01:23.2]} 23. f4 {[%clk 0:02:18.2]}
23... Qf5 {[%clk 0:01:23.4]} 24. Qxf5 {[%clk 0:02:13.7]} 24... gxf5 {[%clk
0:01:22]} 25. Re3 {[%clk 0:02:14.2]} 25... Ne7 {[%clk 0:01:07.1]} 26. h4 {[%clk
0:02:11.3]} 26... Rfc8 {[%clk 0:00:58.6]} 27. Rd1 {[%clk 0:02:00.4]} 27... Rc4
{[%clk 0:00:54.3]} 28. b3 {[%clk 0:01:57.3]} 28... Rc7 {[%clk 0:00:50.1]} 29. h5
{[%clk 0:01:50.3]} 29... Rac8 {[%clk 0:00:49.4]} 30. Rdd3 {[%clk 0:01:50]} 30...
a5 {[%clk 0:00:40.2]} 31. Kf2 {[%clk 0:01:45.5]} 31... b5 {[%clk 0:00:39.5]} 32.
Rg3+ {[%clk 0:01:33.6]} 32... Kf8 {[%clk 0:00:38.4]} 33. Nh7+ {[%clk 0:01:29.2]}
33... Ke8 {[%clk 0:00:38.5]} 34. Rg7 {[%clk 0:01:30.1]} 34... Rxc3 {[%clk
0:00:32.7]} 35. Nf6+ {[%clk 0:01:28.1]} 35... Kf8 {[%clk 0:00:29.4]} 36. Rxc3
{[%clk 0:01:27.1]} 36... Rxc3 {[%clk 0:00:28.3]} 37. Rh7 {[%clk 0:01:26.9]}
37... Rc2+ {[%clk 0:00:15.5]} 38. Kf3 {[%clk 0:01:26.3]} 38... Rc3+ {[%clk
0:00:15.2]} 39. Kf2 {[%clk 0:01:23.8]} 39... Rc2+ {[%clk 0:00:15.2]} 40. Kg1
{[%clk 0:01:24.1]} 40... Rxa2 {[%clk 0:00:12.1]} 41. Rh8+ {[%clk 0:01:23]} 41...
Kg7 {[%clk 0:00:11.7]} 42. Rh7+ {[%clk 0:01:22.9]} 42... Kf8 {[%clk 0:00:10.6]}
43. Rxh6 {[%clk 0:01:22.5]} 43... a4 {[%clk 0:00:09]} 44. bxa4 {[%clk
0:01:19.9]} 44... bxa4 {[%clk 0:00:08.8]} 45. Rh8+ {[%clk 0:01:19.3]} 45... Kg7
{[%clk 0:00:08.4]} 46. Rh7+ {[%clk 0:01:19.3]} 46... Kf8 {[%clk 0:00:08.1]} 47.
h6 {[%clk 0:01:17.5]} 47... Ng6 {[%clk 0:00:06.2]} 48. Rg7 {[%clk 0:01:14.7]}
48... a3 {[%clk 0:00:04.5]} 49. Rg8+ {[%clk 0:01:13]} 49... Ke7 {[%clk
0:00:04.7]} 50. Re8# {[%clk 0:01:13.2]} 1-0

[Event "*** SCC Grand Prix: Titled Tuesday Blitz"]
[Site "Chess.com"]
[Date "2020.06.02"]
[Round "1"]
[White "DrRiebert"]
[Black "HonzaVykouk"]
[Result "0-1"]
[WhiteElo "2284"]
[BlackElo "2624"]
[TimeControl "180+1"]
[EndTime "10:07:32 PDT"]
[Termination "HonzaVykouk won by resignation"]

1. e4 {[%clk 0:03:00.9]} 1... c5 {[%clk 0:02:56.6]} 2. Nf3 {[%clk 0:03:00.9]}
2... d6 {[%clk 0:02:56.5]} 3. d4 {[%clk 0:03:01.3]} 3... cxd4 {[%clk 0:02:57.3]}
4. Nxd4 {[%clk 0:03:02.2]} 4... Nf6 {[%clk 0:02:57.7]} 5. Nc3 {[%clk 0:03:02.8]}
5... a6 {[%clk 0:02:57.7]} 6. Nb3 {[%clk 0:03:03]} 6... e6 {[%clk 0:02:56.7]} 7.
g4 {[%clk 0:03:02.8]} 7... b5 {[%clk 0:02:57.3]} 8. a3 {[%clk 0:02:52.4]} 8...
Bb7 {[%clk 0:02:54.5]} 9. Bg2 {[%clk 0:02:51.9]} 9... Qc7 {[%clk 0:02:54.3]} 10.
Be3 {[%clk 0:02:29.8]} 10... Be7 {[%clk 0:02:53.6]} 11. g5 {[%clk 0:02:28.7]}
11... Nfd7 {[%clk 0:02:53.4]} 12. f4 {[%clk 0:02:26.2]} 12... Nc6 {[%clk
0:02:51.3]} 13. Qe2 {[%clk 0:02:18.2]} 13... Nb6 {[%clk 0:02:50.6]} 14. Nd2
{[%clk 0:01:56.6]} 14... O-O {[%clk 0:02:45.8]} 15. h4 {[%clk 0:01:49.6]} 15...
Rfe8 {[%clk 0:02:45.6]} 16. h5 {[%clk 0:01:48.5]} 16... d5 {[%clk 0:02:46]} 17.
exd5 {[%clk 0:01:27.6]} 17... exd5 {[%clk 0:02:45.7]} 18. Bxb6 {[%clk
0:01:10.8]} 18... Qxb6 {[%clk 0:02:43.8]} 19. Nxd5 {[%clk 0:01:11.2]} 19... Qd4
{[%clk 0:02:42.5]} 20. c3 {[%clk 0:01:03.1]} 20... Qc5 {[%clk 0:02:18.8]} 21.
Ne4 {[%clk 0:00:52.6]} 21... Qxd5 {[%clk 0:02:12]} 22. Nf6+ {[%clk 0:00:41.7]}
22... Bxf6 {[%clk 0:02:12.3]} 23. Bxd5 {[%clk 0:00:41.6]} 23... Rxe2+ {[%clk
0:02:11.8]} 24. Kxe2 {[%clk 0:00:42.5]} 24... Re8+ {[%clk 0:02:11]} 25. Kf2
{[%clk 0:00:40]} 25... Bd8 {[%clk 0:02:08.7]} 26. g6 {[%clk 0:00:40.1]} 26...
Bb6+ {[%clk 0:02:08.1]} 27. Kg2 {[%clk 0:00:36.4]} 27... Re2+ {[%clk 0:01:59.2]}
28. Kg3 {[%clk 0:00:33.1]} 28... Re3+ {[%clk 0:01:51.8]} 29. Kg2 {[%clk
0:00:33]} 29... Nd8 {[%clk 0:01:34.3]} 30. Bxb7 {[%clk 0:00:33.9]} 30... Nxb7
{[%clk 0:01:34.1]} 31. Rhe1 {[%clk 0:00:33.6]} 31... hxg6 {[%clk 0:01:24.3]} 32.
hxg6 {[%clk 0:00:33.6]} 32... fxg6 {[%clk 0:01:23]} 33. Rxe3 {[%clk 0:00:33.1]}
33... Bxe3 {[%clk 0:01:22.6]} 34. Kf3 {[%clk 0:00:33.8]} 34... Bc5 {[%clk
0:01:20.4]} 35. Rd1 {[%clk 0:00:33.4]} 35... Bd6 {[%clk 0:01:20]} 36. Ke4 {[%clk
0:00:22]} 36... Kf7 {[%clk 0:01:19.7]} 37. Kd5 {[%clk 0:00:20.4]} 37... Bxf4
{[%clk 0:01:19.5]} 38. Kc6 {[%clk 0:00:20.5]} 38... Na5+ {[%clk 0:01:17.2]} 39.
Kb6 {[%clk 0:00:17.2]} 39... Nc4+ {[%clk 0:01:17.3]} 40. Kxa6 {[%clk 0:00:17.1]}
40... Nxb2 {[%clk 0:01:18.2]} 41. Rf1 {[%clk 0:00:16.8]} 41... g5 {[%clk
0:01:18.3]} 42. Kxb5 {[%clk 0:00:17.3]} 42... Ke6 {[%clk 0:01:16.7]} 43. a4
{[%clk 0:00:17.9]} 43... Kd6 {[%clk 0:01:13.5]} 44. a5 {[%clk 0:00:18.2]} 44...
Kc7 {[%clk 0:01:13.9]} 45. a6 {[%clk 0:00:18.3]} 45... Nd3 {[%clk 0:01:14.2]}
46. c4 {[%clk 0:00:16.6]} 46... g4 {[%clk 0:01:11.7]} 47. Rd1 {[%clk 0:00:16.8]}
47... Ne5 {[%clk 0:01:09.7]} 48. Ra1 {[%clk 0:00:15.5]} 48... Kb8 {[%clk
0:01:04.3]} 49. c5 {[%clk 0:00:14.7]} 49... g3 {[%clk 0:01:01.8]} 50. a7+ {[%clk
0:00:13.8]} 50... Ka8 {[%clk 0:01:01.8]} 51. c6 {[%clk 0:00:14.3]} 51... Nd3
{[%clk 0:00:52.9]} 52. Rd1 {[%clk 0:00:12.9]} 52... g2 {[%clk 0:00:49.7]} 53.
Rxd3 {[%clk 0:00:10.6]} 53... g1=Q {[%clk 0:00:49.7]} 54. Rd8+ {[%clk
0:00:10.3]} 54... Kxa7 {[%clk 0:00:49.8]} 55. Rd7+ {[%clk 0:00:10.8]} 55... Kb8
{[%clk 0:00:48.9]} 56. Rd8+ {[%clk 0:00:11.3]} 56... Kc7 {[%clk 0:00:48.3]} 57.
Rd7+ {[%clk 0:00:11.9]} 57... Kc8 {[%clk 0:00:48.2]} 0-1